fUSD/lending_fUSD_20240620
["ID","MTS","AMOUNT","RATE_DAILY","PERIOD"]
[329975799,1718889033193,-527.44,0.000138,2]
[329975800,1718889033202,-150.0,0.000138,2]
[329975801,1718889033211,-150.0,0.000138,2]
[329975802,1718889033220,-164.53,0.000138,2]
[329975803,1718889033229,-354.14,0.000138,2]
[329975804,1718889033238,-852.48,0.000138,2]
[329975805,1718889033248,-423.49,0.000138,2]
[329975806,1718889033256,-527.44,0.000138,2]
[329975807,1718889033266,-150.0,0.000138,2]
[329975808,1718889033275,-150.0,0.000138,2]
[329975809,1718889033284,-150.0,0.000138,2]
[329975810,1718889033293,-164.53,0.000138,2]
[329975811,1718889033302,-150.0,0.000138,2]
[329975812,1718889033311,-150.0,0.000138,2]
[329975813,1718889033321,-150.0,0.000138,2]
[329975814,1718889033330,-354.14,0.000138,2]
[329975815,1718889033339,-171.2550999,0.00013887,2]
[329975816,1718889033348,-164.12021136,0.00013887,2]
[329975817,1718889033357,-995.8186,0.00013887,2]
[329975818,1718889033366,-500.0,0.00013888,2]
[329975819,1718889033375,-611.8,0.00013892,2]
[329975820,1718889033384,-612.77,0.00013892,2]
[329975821,1718889033393,-583.16,0.00013892,2]
[329975822,1718889033403,-795.19,0.00013892,2]
[329975823,1718889033412,-721.13,0.00013892,2]
[329975824,1718889033421,-1185.6,0.00013892,2]
[329975825,1718889033429,-6010.14,0.00013892,2]
[329975826,1718889033438,-500.0,0.00013892,2]
[329975827,1718889033447,-1297.78,0.00013892,2]
[329975828,1718889033456,-8201.52,0.00013892,2]
[329975829,1718889033466,-593.69,0.00013892,2]
[329975830,1718889033475,-549.13,0.00013892,2]
[329975831,1718889033484,-1046.52,0.00013892,2]
[329975832,1718889033493,-500.0,0.00013893,2]
[329975833,1718889033502,-500.0,0.00013893,2]
[329975834,1718889033511,-180.29,0.00013893,2]
[329975835,1718889033521,-500.0,0.00013893,2]
[329975836,1718889033533,-500.0,0.00013893,2]
[329975837,1718889033542,-500.0,0.00013893,2]
[329975838,1718889033551,-500.0,0.00013893,2]
[329975839,1718889033561,-500.0,0.00013893,2]
[329975840,1718889033570,-500.0,0.00013893,2]
[329975841,1718889033579,-4568.72,0.00013893,2]
[329975842,1718889033589,-500.0,0.00013893,2]
[329975843,1718889033598,-500.0,0.00013893,2]
[329975844,1718889033607,-500.0,0.00013893,2]
[329975845,1718889033616,-500.0,0.00013893,2]
[329975846,1718889033625,-500.0,0.00013893,2]
[329975847,1718889033634,-308.00422818,0.00013893,2]
[329975848,1718889033644,-500.0,0.00013893,2]
[329975849,1718889033654,-500.0,0.00013893,2]
[329975850,1718889033664,-500.0,0.00013893,2]
[329975851,1718889033674,-500.0,0.00013893,2]
[329975852,1718889033683,-500.0,0.00013893,2]
[329975853,1718889033693,-500.0,0.00013893,2]
[329975854,1718889033702,-500.0,0.00013893,2]
[329975855,1718889033711,-500.0,0.00013893,2]
[329975856,1718889033720,-587.8741465,0.00013893,2]
[329975857,1718889033730,-500.0,0.00013893,2]
[329975858,1718889033740,-500.0,0.00013893,2]
[329975859,1718889033749,-500.0,0.00013893,2]
[329975860,1718889033759,-500.0,0.00013893,2]
[329975861,1718889033768,-500.0,0.00013893,2]
[329975862,1718889033779,-500.0,0.00013893,2]
[329975863,1718889033788,-500.0,0.00013893,2]
[329975864,1718889033798,-500.0,0.00013893,2]
[329975865,1718889033808,-500.0,0.00013893,2]
[329975866,1718889033817,-500.0,0.00013893,2]
[329975867,1718889033827,-500.0,0.00013893,2]
[329975868,1718889033837,-500.0,0.00013893,2]
[329975869,1718889033847,-500.0,0.00013893,2]
[329975870,1718889033861,-500.0,0.00013893,2]
[329975871,1718889033871,-500.0,0.00013893,2]
[329975872,1718889033880,-500.0,0.00013893,2]
[329975873,1718889033890,-500.0,0.00013893,2]
[329975874,1718889033900,-500.0,0.00013893,2]
[329975875,1718889033910,-500.0,0.00013894,2]
[329975876,1718889033920,-500.0,0.00013894,2]
[329975877,1718889033933,-500.0,0.00013894,2]
[329975878,1718889033943,-500.0,0.00013894,2]
[329975879,1718889033953,-448.20174494,0.00013895,2]
[329975880,1718889033963,-3000.0,0.00013895,2]
[329975881,1718889033972,-6198.3621557,0.000139,2]
[329975882,1718889034018,-522.07708951,0.000139,2]
[329975883,1718889034031,-380.03886704,0.000139,2]
[329975884,1718889034042,-399.52188775,0.000139,2]
[329975885,1718889034052,-154.72618634,0.000139,2]
[329975886,1718889034062,-345.653203,0.00013916,2]
[329975887,1718889034071,-305.48248054,0.00013932,2]
[329975888,1718889034081,-192.72568968,0.00013932,2]
[329975889,1718889034090,-180.82469678,0.00013935,2]
[329975890,1718889034099,-176.13900663,0.00013935,2]
[329975891,1718889034109,-423.19,0.00013973,2]
[329975892,1718889034118,-671.24,0.00013977,3]
[329975893,1718889034127,-524.77,0.00013986,2]
[329975894,1718889034137,-500.0,0.00013986,2]
[329975895,1718889034146,-1221.66,0.00013986,2]
[329975896,1718889034155,-676.88,0.00013986,2]
[329975897,1718889034164,-3521.34024237,0.00013986,2]
[329975898,1718889034176,-606.41975763,0.00013986,2]
[329975899,1718889034185,-1323.79,0.00013986,2]
[329975900,1718889034194,-122.67513402,0.00013986,2]
[329975901,1718889034219,-317.65,0.00013986,2]
[329975903,1718889038266,-1093.39984685,0.00013986,2]
[329975904,1718889038669,-994.53623725,0.00013986,2]
[329975905,1718889038683,-369.90456315,0.00013986,2]
[329975906,1718889038694,-479.24999973,0.00013986,2]
[329975907,1718889038706,-224.364219,0.00013986,2]
[329975908,1718889038716,-1864.7,0.00013986,2]
[329975910,1718889038726,-1256.08,0.00013986,2]
[329975911,1718889038735,-859.12,0.00013986,2]
[329975913,1718889038745,-500.0,0.00013986,2]
[329975914,1718889038755,-569.16,0.00013986,2]
[329975916,1718889038764,-854.68,0.00013986,2]
[329975918,1718889038774,-500.0,0.00013986,2]
[329975919,1718889038786,-500.0,0.00013986,2]
[329975920,1718889038795,-686.83,0.00013986,2]
[329975921,1718889038805,-500.0,0.00013987,2]
[329975922,1718889038815,-920.58,0.00013987,2]
[329975923,1718889038825,-513.56481441,0.00013987,2]
[329975924,1718889038835,-500.0,0.00013987,2]
[329975925,1718889038844,-500.0,0.00013987,2]
[329975926,1718889038857,-500.0,0.00013987,2]
[329975927,1718889038867,-500.0,0.00013987,2]
[329975928,1718889038876,-223.00568397,0.00013987,2]
[329975929,1718889038886,-500.0,0.00013987,2]
[329975930,1718889038896,-500.0,0.00013987,2]
[329975931,1718889038906,-500.0,0.00013987,2]
[329975932,1718889038916,-500.0,0.00013987,2]
[329975933,1718889038925,-233.06785378,0.00013987,2]
[329975934,1718889038936,-500.0,0.00013987,2]
[329975935,1718889038946,-500.0,0.00013987,2]
[329975936,1718889038956,-135.47804533,0.00013987,2]
[329975937,1718889038985,-364.52195467,0.00013987,2]
[329975938,1718889038995,-103.97968537,0.00013987,2]
[329975939,1718889039006,-396.02031463,0.00013987,2]
[329975940,1718889039016,-500.0,0.00013987,2]
[329975941,1718889039027,-150.0,0.00013987,2]
[329975942,1718889039039,-500.0,0.00013987,2]
[329975943,1718889039050,-500.0,0.00013987,2]
[329975944,1718889039060,-427.79823664,0.00013987,2]
[329975945,1718889039072,-33.60588947,0.00013987,2]
[329975946,1718889039083,-500.0,0.00013987,2]
[329975947,1718889039093,-466.39411053,0.00013987,2]
[329975965,1718889040451,-33.60588947,0.00013987,2]
[329975967,1718889040460,-500.0,0.00013987,2]
[329975968,1718889040469,-500.0,0.00013987,2]
[329975969,1718889040478,-500.0,0.00013987,2]
[329975970,1718889040488,-500.0,0.00013987,2]
[329975972,1718889040497,-500.0,0.00013987,2]
[329975974,1718889040507,-597.95,0.00013987,2]
[329975975,1718889040516,-500.0,0.00013987,2]
[329975976,1718889040527,-500.0,0.00013987,2]
[329975977,1718889040538,-500.0,0.00013987,2]
[329975978,1718889040548,-500.0,0.00013987,2]
[329975979,1718889040557,-500.0,0.00013987,2]
[329975980,1718889040567,-500.0,0.00013987,2]
[329975981,1718889040577,-500.0,0.00013987,2]
[329975982,1718889040587,-500.0,0.00013987,2]
[329975983,1718889040596,-500.0,0.00013987,2]
[329975984,1718889040606,-500.0,0.00013987,2]
[329975985,1718889040615,-500.0,0.00013987,2]
[329975986,1718889040624,-673.86,0.00013987,2]
[329975987,1718889040633,-500.0,0.00013987,2]
[329975988,1718889040643,-500.0,0.00013987,2]
[329975989,1718889040652,-500.0,0.00013987,2]
[329975990,1718889040662,-500.0,0.00013987,2]
[329975991,1718889040671,-500.0,0.00013987,2]
[329975992,1718889040679,-500.0,0.00013987,2]
[329975993,1718889040689,-500.0,0.00013987,2]
[329975994,1718889040698,-500.0,0.00013987,2]
[329975995,1718889040707,-500.0,0.00013987,2]
[329975996,1718889040716,-1269.26,0.00013987,2]
[329975997,1718889040725,-1607.79874576,0.00013987,2]
[329975998,1718889040737,-886.12730972,0.00013987,2]
[329975999,1718889040748,-1082.23394452,0.00013987,2]
[329976000,1718889040758,-822.61,0.00013987,2]
[329976001,1718889040767,-500.0,0.00013987,2]
[329976002,1718889040776,-1533.0,0.00013987,2]
[329976003,1718889040788,-500.0,0.00013987,2]
[329976004,1718889040798,-500.0,0.00013987,2]
[329976005,1718889040808,-500.0,0.00013987,2]
[329976006,1718889040818,-12018.55,0.00013987,2]
[329976007,1718889040827,-9352.53,0.00013987,2]
[329976008,1718889040837,-513.61,0.00013987,2]
[329976009,1718889040846,-500.0,0.00013987,2]
[329976010,1718889040858,-500.0,0.00013987,2]
[329976011,1718889040868,-500.0,0.00013987,2]
[329976012,1718889040878,-501.48,0.00013987,2]
[329976013,1718889040887,-500.0,0.00013987,2]
[329976014,1718889040897,-500.0,0.00013987,2]
[329976015,1718889040907,-779.49,0.00013987,2]
[329976016,1718889040917,-926.44,0.00013987,2]
[329976017,1718889040926,-500.0,0.00013987,2]
[329976018,1718889040937,-3587.35,0.00013987,2]
[329976019,1718889040946,-500.0,0.00013987,2]
[329976020,1718889040956,-500.0,0.00013987,2]
[329976021,1718889040965,-745.44,0.00013987,2]
[329976022,1718889040975,-3438.74,0.00013987,2]
[329976023,1718889040985,-731.23,0.00013987,2]
[329976024,1718889040994,-500.0,0.00013987,2]
[329976025,1718889041004,-1474.13,0.00013987,2]
[329976026,1718889041014,-500.0,0.00013987,2]
[329976027,1718889041023,-1479.36,0.00013987,2]
[329976028,1718889041034,-500.0,0.00013987,2]
[329976029,1718889041044,-500.0,0.00013987,2]
[329976031,1718889041054,-1379.07,0.00013987,2]
[329976034,1718889041063,-537.07,0.00013987,2]
[329976037,1718889041072,-696.69,0.00013987,2]
[329976039,1718889041082,-933.45,0.00013987,2]
[329976040,1718889041091,-500.0,0.00013987,2]
[329976042,1718889041100,-500.0,0.00013987,2]
[329976044,1718889041109,-500.0,0.00013987,2]
[329976046,1718889041119,-613.44,0.00013987,2]
[329976048,1718889041128,-500.0,0.00013987,2]
[329976050,1718889041137,-500.0,0.00013987,2]
[329976052,1718889041146,-500.0,0.00013987,2]
[329976054,1718889041155,-500.0,0.00013987,2]
[329976055,1718889041165,-1329.3,0.00013987,2]
[329976057,1718889041174,-2111.09,0.00013987,2]
[329976059,1718889041183,-3046.26,0.00013987,2]
[329976061,1718889041192,-842.85,0.00013987,2]
[329976063,1718889041201,-500.0,0.00013987,2]
[329976065,1718889041210,-1686.42,0.00013987,2]
[329976067,1718889041219,-1325.0,0.00013987,2]
[329976068,1718889041228,-500.0,0.00013987,2]
[329976070,1718889041237,-482.70304855,0.00013987,2]
[329976072,1718889041247,-500.0,0.00013987,2]
[329976074,1718889041256,-1119.43,0.00013987,2]
[329976076,1718889041265,-2699.68,0.00013987,2]
[329976078,1718889041274,-604.97,0.00013987,2]
[329976079,1718889041285,-871.24,0.00013987,2]
[329976080,1718889041294,-500.0,0.00013987,2]
[329976081,1718889041303,-1518.04,0.00013987,2]
[329976082,1718889041312,-663.75,0.00013987,2]
[329976083,1718889041322,-961.51,0.00013987,2]
[329976084,1718889041331,-1148.29,0.00013987,2]
[329976085,1718889041341,-789.37,0.00013987,2]
[329976086,1718889041350,-500.0,0.00013987,2]
[329976087,1718889041359,-500.0,0.00013987,2]
[329976088,1718889041368,-1115.2,0.00013987,2]
[329976089,1718889041377,-993.71,0.00013987,2]
[329976090,1718889041386,-1499.8,0.00013987,2]
[329976091,1718889041395,-774.85,0.00013987,2]
[329976092,1718889041404,-975.55,0.00013987,2]
[329976093,1718889041413,-500.0,0.00013987,2]
[329976094,1718889041422,-500.0,0.00013987,2]
[329976095,1718889041431,-500.0,0.00013987,2]
[329976096,1718889041440,-1328.15,0.00013987,2]
[329976097,1718889041449,-1369.33,0.00013987,2]
[329976098,1718889041459,-500.0,0.00013987,2]
[329976099,1718889041468,-238.93903321,0.00013987,2]
[329976100,1718889041477,-1614.56,0.00013987,2]
[329976101,1718889041486,-1464.21,0.00013987,2]
[329976102,1718889041495,-500.0,0.00013987,2]
[329976103,1718889041505,-500.0,0.00013987,2]
[329976104,1718889041514,-500.0,0.00013987,2]
[329976105,1718889041523,-500.0,0.00013987,2]
[329976106,1718889041532,-678.36,0.00013987,2]
[329976107,1718889041541,-2360.33,0.00013987,2]
[329976108,1718889041555,-746.04,0.00013987,2]
[329976109,1718889041564,-500.0,0.00013987,2]
[329976110,1718889041574,-962.19,0.00013987,2]
[329976111,1718889041584,-989.99,0.00013987,2]
[329976112,1718889041593,-1966.1,0.00013987,2]
[329976113,1718889041603,-500.0,0.00013987,2]
[329976114,1718889041612,-1000.01,0.00013987,2]
[329976115,1718889041621,-2364.55,0.00013987,2]
[329976116,1718889041630,-925.59,0.00013987,2]
[329976117,1718889041639,-664.24,0.00013987,2]
[329976118,1718889041649,-2072.71,0.00013987,2]
[329976119,1718889041658,-500.0,0.00013987,2]
[329976120,1718889041669,-3762.6,0.00013988,2]
[329976121,1718889041678,-604.24,0.00013988,2]
[329976122,1718889041687,-903.1,0.00013988,2]
[329976123,1718889041696,-1140.42,0.00013988,2]
[329976124,1718889041706,-1564.5,0.00013988,2]
[329976125,1718889041715,-643.88,0.00013988,2]
[329976126,1718889041724,-785.01,0.00013988,2]
[329976127,1718889041734,-500.0,0.00013988,2]
[329976128,1718889041743,-735.68,0.00013988,2]
[329976129,1718889041753,-3523.88,0.00013988,2]
[329976130,1718889041763,-1913.94,0.00013988,2]
[329976131,1718889041772,-882.95,0.00013988,2]
[329976132,1718889041782,-1493.77,0.00013988,2]
[329976133,1718889041792,-2162.42,0.00013988,2]
[329976134,1718889041802,-3753.46,0.00013988,2]
[329976135,1718889041812,-1324.11,0.00013988,2]
[329976136,1718889041821,-1643.06,0.00013988,2]
[329976137,1718889041831,-500.0,0.00013988,2]
[329976138,1718889041841,-536.3,0.00013988,2]
[329976139,1718889041853,-500.0,0.00013988,2]
[329976140,1718889041865,-1662.94,0.00013988,2]
[329976141,1718889041875,-1691.99,0.00013988,2]
[329976142,1718889041885,-1115.23,0.00013988,2]
[329976143,1718889041896,-500.0,0.00013988,2]
[329976144,1718889041906,-7434.91996179,0.00013989,2]
[329976145,1718889041916,-151.31,0.0001399,2]
[329976146,1718889041927,-151.31,0.0001399,2]
[329976147,1718889041936,-151.31,0.0001399,2]
[329976148,1718889041946,-151.31,0.0001399,2]
[329976149,1718889041955,-151.31,0.0001399,2]
[329976150,1718889041965,-151.31,0.0001399,2]
[329976151,1718889041974,-151.31,0.0001399,2]
[329976152,1718889041984,-151.31,0.0001399,2]
[329976153,1718889041994,-151.31,0.0001399,2]
[329976154,1718889042004,-151.31,0.0001399,2]
[329976155,1718889042013,-151.31,0.0001399,2]
[329976156,1718889042023,-151.31,0.0001399,2]
[329976157,1718889042033,-151.31,0.0001399,2]
[329976158,1718889042043,-171.25509986,0.00014,2]
[329976159,1718889042052,-317.0,0.00014,2]
[329976160,1718889042062,-360.0,0.00014,2]
[329976161,1718889042071,-203.0,0.00014,2]
[329976162,1718889042080,-203.0,0.00014,2]
[329976163,1718889042090,-203.0,0.00014,2]
[329976164,1718889042100,-203.0,0.00014,2]
[329976165,1718889042110,-201.0,0.00014,2]
[329976166,1718889042119,-201.0,0.00014,2]
[329976167,1718889042128,-201.0,0.00014,2]
[329976168,1718889042137,-203.0,0.00014,2]
[329976169,1718889042146,-201.0,0.00014,2]
[329976170,1718889042155,-203.0,0.00014,2]
[329976171,1718889042164,-201.0,0.00014,2]
[329976172,1718889042173,-203.0,0.00014,2]
[329976173,1718889042182,-201.0,0.00014,2]
[329976174,1718889042191,-2000.0,0.00014,2]
[329976175,1718889042200,-2000.0,0.00014,2]
[329976176,1718889042209,-209759.24762429,0.00014,2]
[329976177,1718889042244,-387.33286517,0.00014,2]
[329976178,1718889042520,-750.72000001,0.00014,2]
[329976179,1718889042532,-1156.68,0.00014,2]
[329976180,1718889042565,-15912.999,0.00014,2]
[329976181,1718889042576,-671.80019193,0.00014,2]
[329976182,1718889042587,-65253.1608,0.00014,2]
[329976183,1718889042598,-5360.44557349,0.00014,2]
[329976184,1718889042609,-42430.95738175,0.00014,2]
[329976185,1718889042642,-45922.5163332,0.00014,2]
[329976186,1718889042653,-14453.14132,0.00014,2]
[329976187,1718889042665,-265.92511715,0.00014,2]
[329976221,1718889043439,-322.94173746,0.00013925,2]
[329976223,1718889043450,-952932.46918235,0.00014,2]
[329976225,1718889043459,-151.31,0.00014025,2]
[329976227,1718889043469,-164.12021136,0.00014032,2]
[329976229,1718889043478,-248.117,0.00014035,2]
[329976231,1718889043487,-151.122,0.00014035,2]
[329976233,1718889043497,-248.162,0.00014035,2]
[329976235,1718889043506,-168.81,0.00014035,2]
[329976237,1718889043516,-359.0,0.00014035,2]
[329976239,1718889043525,-1830.0,0.00014035,2]
[329976240,1718889043536,-617.0,0.00014035,2]
[329976241,1718889043546,-166.0,0.00014035,2]
[329976242,1718889043555,-442.0,0.00014035,2]
[329976243,1718889043564,-1304.0,0.00014035,2]
[329976244,1718889043573,-2410.0,0.00014035,2]
[329976245,1718889043583,-447.0,0.00014035,2]
[329976246,1718889043592,-3194.0,0.00014035,2]
[329976247,1718889043602,-547.0,0.00014035,2]
[329976248,1718889043611,-3559.635,0.00014087,2]
[329976249,1718889043621,-345.653203,0.00014087,2]
[329976250,1718889043630,-171.25509986,0.00014112,2]
[329976251,1718889043640,-611.8,0.00014166,2]
[329976252,1718889043649,-612.77,0.00014166,2]
[329976253,1718889043659,-583.16,0.00014166,2]
[329976254,1718889043669,-795.19,0.00014166,2]
[329976255,1718889043678,-721.13,0.00014166,2]
[329976256,1718889043687,-1185.6,0.00014166,2]
[329976257,1718889043698,-6010.14,0.00014166,2]
[329976258,1718889043707,-500.0,0.00014166,2]
[329976259,1718889043718,-1297.78,0.00014166,2]
[329976260,1718889043728,-8201.52,0.00014166,2]
[329976261,1718889043738,-593.69,0.00014166,2]
[329976262,1718889043748,-549.13,0.00014166,2]
[329976263,1718889043758,-1046.52,0.00014166,2]
[329976264,1718889043768,-500.0,0.00014167,2]
[329976265,1718889043777,-480.89231426,0.00014167,2]
[329976266,1718889043787,-500.0,0.00014167,2]
[329976267,1718889043797,-500.0,0.00014167,2]
[329976268,1718889043806,-500.0,0.00014167,2]
[329976269,1718889043816,-4568.72,0.00014167,2]
[329976270,1718889043826,-500.0,0.00014167,2]
[329976271,1718889043835,-500.0,0.00014167,2]
[329976272,1718889043845,-500.0,0.00014167,2]
[329976273,1718889043858,-500.0,0.00014167,2]
[329976274,1718889043868,-500.0,0.00014167,2]
[329976275,1718889043877,-500.0,0.00014167,2]
[329976276,1718889043886,-500.0,0.00014167,2]
[329976277,1718889043898,-500.0,0.00014167,2]
[329976278,1718889043907,-500.0,0.00014167,2]
[329976279,1718889043917,-500.0,0.00014167,2]
[329976280,1718889043927,-500.0,0.00014167,2]
[329976282,1718889043939,-606.97480077,0.00014167,2]
[329976284,1718889043949,-500.0,0.00014167,2]
[329976286,1718889043959,-257.93640536,0.00014167,2]
[329976288,1718889043968,-500.0,0.00014167,2]
[329976290,1718889043977,-500.0,0.00014167,2]
[329976291,1718889043987,-500.0,0.00014167,2]
[329976292,1718889043996,-500.0,0.00014167,2]
[329976293,1718889044005,-500.0,0.00014167,2]
[329976294,1718889044015,-500.0,0.00014167,2]
[329976295,1718889044024,-500.0,0.00014167,2]
[329976296,1718889044034,-500.0,0.00014167,2]
[329976297,1718889044044,-500.0,0.00014167,2]
[329976298,1718889044054,-500.0,0.00014167,2]
[329976299,1718889044064,-500.0,0.00014167,2]
[329976300,1718889044073,-500.0,0.00014167,2]
[329976301,1718889044083,-500.0,0.00014167,2]
[329976302,1718889044092,-500.0,0.00014167,2]
[329976303,1718889044101,-500.0,0.00014167,2]
[329976304,1718889044110,-500.0,0.00014167,2]
[329976305,1718889044119,-500.0,0.00014167,2]
[329976306,1718889044128,-545.2573841,0.00014168,2]
[329976307,1718889044137,-500.0,0.00014168,2]
[329976308,1718889044146,-500.0,0.00014168,2]
[329976309,1718889044155,-500.0,0.00014168,2]
[329976310,1718889044165,-164.12021136,0.00014176,2]
[329976311,1718889044175,-171.25509986,0.00014225,2]
[329976312,1718889044184,-575.0,0.00014233,2]
[329976313,1718889044193,-151.31,0.00014251,2]
[329976314,1718889044202,-345.653203,0.00014259,2]
[329976315,1718889044211,-524.77,0.0001426,2]
[329976316,1718889044221,-500.0,0.0001426,2]
[329976317,1718889044231,-1221.66,0.0001426,2]
[329976318,1718889044240,-676.88,0.0001426,2]
[329976319,1718889044249,-4127.76,0.0001426,2]
[329976320,1718889044259,-1323.79,0.0001426,2]
[329976321,1718889044269,-3601.78,0.0001426,2]
[329976322,1718889044278,-1864.7,0.0001426,2]
[329976323,1718889044290,-1256.08,0.0001426,2]
[329976324,1718889044300,-859.12,0.0001426,2]
[329976325,1718889044309,-500.0,0.0001426,2]
[329976326,1718889044320,-569.16,0.0001426,2]
[329976327,1718889044329,-854.68,0.0001426,2]
[329976328,1718889044339,-500.0,0.0001426,2]
[329976329,1718889044348,-686.83,0.0001426,2]
[329976330,1718889044357,-500.0,0.0001426,2]
[329976331,1718889044366,-607.37166471,0.00014261,2]
[329976332,1718889044375,-920.58,0.00014261,2]
[329976333,1718889044383,-500.0,0.00014261,2]
[329976334,1718889044392,-500.0,0.00014261,2]
[329976335,1718889044402,-500.0,0.00014261,2]
[329976336,1718889044411,-500.0,0.00014261,2]
[329976337,1718889044421,-500.0,0.00014261,2]
[329976338,1718889044431,-500.0,0.00014261,2]
[329976339,1718889044440,-500.0,0.00014261,2]
[329976340,1718889044450,-500.0,0.00014261,2]
[329976341,1718889044460,-500.0,0.00014261,2]
[329976342,1718889044470,-305.42279062,0.00014261,2]
[329976343,1718889044479,-500.0,0.00014261,2]
[329976344,1718889044489,-500.0,0.00014261,2]
[329976345,1718889044499,-500.0,0.00014261,2]
[329976346,1718889044509,-150.0,0.00014261,2]
[329976347,1718889044518,-500.0,0.00014261,2]
[329976348,1718889044527,-500.0,0.00014261,2]
[329976349,1718889044536,-500.0,0.00014261,2]
[329976350,1718889044546,-500.0,0.00014261,2]
[329976351,1718889044555,-500.0,0.00014261,2]
[329976352,1718889044565,-500.0,0.00014261,2]
[329976353,1718889044575,-500.0,0.00014261,2]
[329976354,1718889044585,-500.0,0.00014261,2]
[329976355,1718889044594,-500.0,0.00014261,2]
[329976356,1718889044603,-597.95,0.00014261,2]
[329976357,1718889044624,-500.0,0.00014261,2]
[329976358,1718889044634,-500.0,0.00014261,2]
[329976359,1718889044643,-416.90639656,0.00014261,2]
[329976360,1718889044653,-500.0,0.00014261,2]
[329976361,1718889044662,-500.0,0.00014261,2]
[329976362,1718889044672,-500.0,0.00014261,2]
[329976363,1718889044681,-500.0,0.00014261,2]
[329976364,1718889044691,-500.0,0.00014261,2]
[329976365,1718889044700,-500.0,0.00014261,2]
[329976366,1718889044710,-512.1563738,0.00014261,2]
[329976367,1718889044719,-500.0,0.00014261,2]
[329976368,1718889044728,-673.86,0.00014261,2]
[329976369,1718889044738,-500.0,0.00014261,2]
[329976370,1718889044748,-500.0,0.00014261,2]
[329976371,1718889044758,-500.0,0.00014261,2]
[329976372,1718889044768,-500.0,0.00014261,2]
[329976373,1718889044777,-500.0,0.00014261,2]
[329976374,1718889044789,-500.0,0.00014261,2]
[329976375,1718889044798,-500.0,0.00014261,2]
[329976376,1718889044807,-500.0,0.00014261,2]
[329976377,1718889044816,-500.0,0.00014261,2]
[329976378,1718889044826,-3576.16,0.00014261,2]
[329976379,1718889044835,-822.61,0.00014261,2]
[329976380,1718889044844,-1533.0,0.00014261,2]
[329976381,1718889044856,-500.0,0.00014261,2]
[329976382,1718889044868,-500.0,0.00014261,2]
[329976383,1718889044877,-500.0,0.00014261,2]
[329976384,1718889044887,-12018.55,0.00014261,2]
[329976385,1718889044899,-9352.53,0.00014261,2]
[329976386,1718889044908,-500.0,0.00014261,2]
[329976387,1718889044918,-513.61,0.00014261,2]
[329976388,1718889044927,-500.0,0.00014261,2]
[329976389,1718889044940,-500.0,0.00014261,2]
[329976390,1718889044949,-501.48,0.00014261,2]
[329976391,1718889044959,-500.0,0.00014261,2]
[329976392,1718889044969,-500.0,0.00014261,2]
[329976393,1718889044978,-779.49,0.00014261,2]
[329976394,1718889044988,-926.44,0.00014261,2]